[Event "Titled Tuesday Blitz December 14 2021"]
[White "Araujo Sanchez, Josue"]
[Black "Svane, Rasmus"]
[WhiteFideId "6416896"]
[BlackFideId "4657101"]
[WhiteElo "2277"]
[BlackElo "2643"]
[Result "0-1"]
[Round "04"]
[TimeControl "180+1"]
[Date "2021.12.15"]
[WhiteClock "0:00:06"]
[BlackClock "0:00:13"]

1. e4 {[%clk 0:03:00]}  c6 {[%clk 0:02:59]} 2. Nc3 {[%clk 0:03:00]}  d5 {[%clk 0:03:00]} 3. Qf3 {[%clk 0:03:00]}  dxe4 {[%clk 0:02:55]} 4. Nxe4 {[%clk 0:03:01]}  Nf6 {[%clk 0:02:56]} 5. Bc4 {[%clk 0:03:01]}  Nbd7 {[%clk 0:02:56]} 6. Bb3 {[%clk 0:02:41]}  e6 {[%clk 0:02:33]} 7. d4 {[%clk 0:02:37]}  Nxe4 {[%clk 0:02:33]} 8. Qxe4 {[%clk 0:02:37]}  Nf6 {[%clk 0:02:34]} 9. Qe2 {[%clk 0:02:32]}  Qxd4 {[%clk 0:02:30]} 10. Nf3 {[%clk 0:02:33]}  Qe4 {[%clk 0:02:14]} 11. Be3 {[%clk 0:02:32]}  Nd5 {[%clk 0:01:49]} 12. Ng5 {[%clk 0:02:29]}  Qe5 {[%clk 0:01:42]} 13. O-O {[%clk 0:01:54]}  Nxe3 {[%clk 0:01:31]} 14. Nf3 {[%clk 0:01:51]}  Qe4 {[%clk 0:01:22]} 15. fxe3 {[%clk 0:01:41]}  Bc5 {[%clk 0:01:22]} 16. Rae1 {[%clk 0:01:41]}  O-O {[%clk 0:01:22]} 17. c3 {[%clk 0:00:08]}  a5 {[%clk 0:01:22]} 18. Bc2 {[%clk 0:00:08]}  Qg4 {[%clk 0:01:21]} 19. Kh1 {[%clk 0:00:08]}  b6 {[%clk 0:01:18]} 20. Qf2 {[%clk 0:00:06]}  Ba6 {[%clk 0:01:15]} 21. Rg1 {[%clk 0:00:06]}  Bd6 {[%clk 0:01:07]} 22. Nd4 {[%clk 0:00:04]}  c5 {[%clk 0:01:00]} 23. Bd1 {[%clk 0:00:04]}  Qg6 {[%clk 0:00:55]} 24. Nf3 {[%clk 0:00:03]}  Rad8 {[%clk 0:00:54]} 25. e4 {[%clk 0:00:02]}  Bc7 {[%clk 0:00:51]} 26. Bc2 {[%clk 0:00:03]}  Qh6 {[%clk 0:00:50]} 27. e5 {[%clk 0:00:03]}  Bb7 {[%clk 0:00:48]} 28. Be4 {[%clk 0:00:03]}  Bd5 {[%clk 0:00:45]} 29. Re2 {[%clk 0:00:03]}  Bc4 {[%clk 0:00:43]} 30. Ree1 {[%clk 0:00:03]}  Rd7 {[%clk 0:00:43]} 31. Re3 {[%clk 0:00:03]}  Rfd8 {[%clk 0:00:40]} 32. Rge1 {[%clk 0:00:03]}  Bxa2 {[%clk 0:00:39]} 33. Kg1 {[%clk 0:00:03]}  Bd5 {[%clk 0:00:39]} 34. h3 {[%clk 0:00:03]}  Bxe4 {[%clk 0:00:38]} 35. Rxe4 {[%clk 0:00:04]}  Rd1 {[%clk 0:00:36]} 36. Rh4 {[%clk 0:00:05]}  Qc1 {[%clk 0:00:32]} 37. Rxd1 {[%clk 0:00:03]}  Rxd1+ {[%clk 0:00:33]} 38. Kh2 {[%clk 0:00:04]}  h6 {[%clk 0:00:28]} 39. Rg4 {[%clk 0:00:04]}  Rf1 {[%clk 0:00:24]} 40. Qe2 {[%clk 0:00:03]}  Rh1+ {[%clk 0:00:23]} 41. Kg3 {[%clk 0:00:03]}  Rd1 {[%clk 0:00:21]} 42. Qe4 {[%clk 0:00:04]}  h5 {[%clk 0:00:11]} 43. Rg5 {[%clk 0:00:03]}  h4+ {[%clk 0:00:08]} 44. Kxh4 {[%clk 0:00:02]}  Bd8 {[%clk 0:00:07]} 45. Kg4 {[%clk 0:00:02]}  Bxg5 {[%clk 0:00:07]} 46. Nxg5 {[%clk 0:00:03]}  Rd8 {[%clk 0:00:06]} 47. Qh7+ {[%clk 0:00:02]}  Kf8 {[%clk 0:00:06]} 48. Qh8+ {[%clk 0:00:03]}  Ke7 {[%clk 0:00:06]} 49. Qxg7 {[%clk 0:00:03]}  Qd1+ {[%clk 0:00:07]} 50. Kh4 {[%clk 0:00:03]}  Qe1+ {[%clk 0:00:07]} 51. g3 {[%clk 0:00:03]}  Qf2 {[%clk 0:00:06]} 52. Nh7 {[%clk 0:00:04]}  Qf5 {[%clk 0:00:06]} 53. g4 {[%clk 0:00:03]}  Qg6 {[%clk 0:00:07]} 54. Qf6+ {[%clk 0:00:03]}  Qxf6+ {[%clk 0:00:07]} 55. Nxf6 {[%clk 0:00:04]}  a4 {[%clk 0:00:07]} 56. Kg5 {[%clk 0:00:04]}  b5 {[%clk 0:00:07]} 57. h4 {[%clk 0:00:05]}  b4 {[%clk 0:00:08]} 58. cxb4 {[%clk 0:00:06]}  cxb4 {[%clk 0:00:09]} 59. h5 {[%clk 0:00:06]}  a3 {[%clk 0:00:09]} 60. bxa3 {[%clk 0:00:05]}  bxa3 {[%clk 0:00:10]} 61. h6 {[%clk 0:00:06]}  a2 {[%clk 0:00:10]} 62. h7 {[%clk 0:00:06]}  Rh8 {[%clk 0:00:11]} 63. Kh6 {[%clk 0:00:06]}  a1=Q {[%clk 0:00:11]} 64. Kg7 {[%clk 0:00:06]}  Rxh7+ {[%clk 0:00:11]} 65. Kxh7 {[%clk 0:00:06]}  Qxe5 {[%clk 0:00:12]} 66. g5 {[%clk 0:00:05]}  Qxf6 {[%clk 0:00:12]} 67. gxf6+ {[%clk 0:00:05]}  Kxf6 {[%clk 0:00:13]} 68. Kh6 {[%clk 0:00:05]}  e5 {[%clk 0:00:13]} 69. Kh5 {[%clk 0:00:06]} 0-1


[Site "https://www.chess.com"]

[Event "Titled Tuesday Blitz December 14 2021"]
[White "Atabayev, Saparmyrat"]
[Black "Pranav, V"]
[WhiteFideId "14000571"]
[BlackFideId "25060783"]
[WhiteElo "2483"]
[BlackElo "2351"]
[Result "0-1"]
[Round "04"]
[TimeControl "180+1"]
[Date "2021.12.14"]
[WhiteClock "0:00:19"]
[BlackClock "0:00:22"]

1. e4 {[%clk 0:02:55]}  e5 {[%clk 0:02:59]} 2. Nf3 {[%clk 0:02:54]}  Nc6 {[%clk 0:03:00]} 3. Bb5 {[%clk 0:02:55]}  a6 {[%clk 0:03:00]} 4. Bxc6 {[%clk 0:02:55]}  dxc6 {[%clk 0:03:00]} 5. Nc3 {[%clk 0:02:56]}  Bg4 {[%clk 0:02:57]} 6. h3 {[%clk 0:02:56]}  Bxf3 {[%clk 0:02:57]} 7. Qxf3 {[%clk 0:02:56]}  Qd7 {[%clk 0:02:58]} 8. d3 {[%clk 0:02:56]}  Ne7 {[%clk 0:02:57]} 9. Qg3 {[%clk 0:02:56]}  Ng6 {[%clk 0:02:56]} 10. Bd2 {[%clk 0:02:56]}  f6 {[%clk 0:02:56]} 11. Qg4 {[%clk 0:02:56]}  Qf7 {[%clk 0:02:52]} 12. O-O-O {[%clk 0:02:54]}  h5 {[%clk 0:02:52]} 13. Qg3 {[%clk 0:02:46]}  O-O-O {[%clk 0:02:52]} 14. Kb1 {[%clk 0:02:45]}  Bd6 {[%clk 0:02:48]} 15. Ne2 {[%clk 0:02:41]}  Kb8 {[%clk 0:02:47]} 16. Rhf1 {[%clk 0:02:40]}  Nf8 {[%clk 0:01:45]} 17. f4 {[%clk 0:02:31]}  Nd7 {[%clk 0:01:41]} 18. Qf2 {[%clk 0:02:17]}  Rhe8 {[%clk 0:01:35]} 19. Ng3 {[%clk 0:02:11]}  exf4 {[%clk 0:01:30]} 20. Bxf4 {[%clk 0:02:12]}  Bxf4 {[%clk 0:01:30]} 21. Qxf4 {[%clk 0:02:13]}  Re5 {[%clk 0:01:31]} 22. d4 {[%clk 0:02:04]}  Ra5 {[%clk 0:01:30]} 23. a3 {[%clk 0:02:04]}  Nb6 {[%clk 0:01:27]} 24. e5 {[%clk 0:01:48]}  Nc4 {[%clk 0:01:16]} 25. exf6 {[%clk 0:01:42]}  Rb5 {[%clk 0:01:16]} 26. b3 {[%clk 0:01:02]}  Nxa3+ {[%clk 0:01:16]} 27. Kc1 {[%clk 0:01:03]}  gxf6 {[%clk 0:00:49]} 28. Qxf6 {[%clk 0:01:04]}  Qg8 {[%clk 0:00:49]} 29. Rf5 {[%clk 0:00:49]}  Re8 {[%clk 0:00:37]} 30. Rxb5 {[%clk 0:00:41]}  axb5 {[%clk 0:00:38]} 31. Qf3 {[%clk 0:00:31]}  b4 {[%clk 0:00:37]} 32. Nxh5 {[%clk 0:00:28]}  Qg6 {[%clk 0:00:30]} 33. Qf2 {[%clk 0:00:15]}  Qxh5 {[%clk 0:00:28]} 34. Re1 {[%clk 0:00:15]}  Qg5+ {[%clk 0:00:24]} 35. Kb2 {[%clk 0:00:15]}  Rxe1 {[%clk 0:00:23]} 36. Qxe1 {[%clk 0:00:16]}  Qxg2 {[%clk 0:00:23]} 37. Qxb4 {[%clk 0:00:15]}  Nb5 {[%clk 0:00:21]} 38. Qf8+ {[%clk 0:00:15]}  Ka7 {[%clk 0:00:21]} 39. Qc5+ {[%clk 0:00:16]}  b6 {[%clk 0:00:21]} 40. Qe5 {[%clk 0:00:14]}  Qxh3 {[%clk 0:00:19]} 41. c3 {[%clk 0:00:09]}  Qxc3+ {[%clk 0:00:19]} 42. Kb1 {[%clk 0:00:10]}  Qxb3+ {[%clk 0:00:17]} 43. Ka1 {[%clk 0:00:11]}  Qa3+ {[%clk 0:00:14]} 44. Kb1 {[%clk 0:00:11]}  Qd3+ {[%clk 0:00:15]} 45. Ka2 {[%clk 0:00:10]}  Qc4+ {[%clk 0:00:12]} 46. Kb1 {[%clk 0:00:09]}  Qxd4 {[%clk 0:00:10]} 47. Qe8 {[%clk 0:00:08]}  Qe4+ {[%clk 0:00:10]} 48. Qxe4 {[%clk 0:00:07]}  Nc3+ {[%clk 0:00:11]} 49. Kb2 {[%clk 0:00:08]}  Nxe4 {[%clk 0:00:12]} 50. Kb3 {[%clk 0:00:08]}  b5 {[%clk 0:00:12]} 51. Kc2 {[%clk 0:00:07]}  Kb6 {[%clk 0:00:13]} 52. Kd1 {[%clk 0:00:08]}  Ng5 {[%clk 0:00:14]} 53. Ke2 {[%clk 0:00:09]}  Nf7 {[%clk 0:00:15]} 54. Kf3 {[%clk 0:00:10]}  Nh8 {[%clk 0:00:15]} 55. Ke3 {[%clk 0:00:11]}  c5 {[%clk 0:00:16]} 56. Ke4 {[%clk 0:00:11]}  b4 {[%clk 0:00:17]} 57. Ke5 {[%clk 0:00:12]}  Kb5 {[%clk 0:00:17]} 58. Ke6 {[%clk 0:00:13]}  c6 {[%clk 0:00:18]} 59. Ke7 {[%clk 0:00:14]}  b3 {[%clk 0:00:19]} 60. Ke8 {[%clk 0:00:15]}  b2 {[%clk 0:00:20]} 61. Kf8 {[%clk 0:00:15]}  b1=Q {[%clk 0:00:21]} 62. Kg8 {[%clk 0:00:16]}  Qg1+ {[%clk 0:00:20]} 63. Kxh8 {[%clk 0:00:17]}  c4 {[%clk 0:00:20]} 64. Kh7 {[%clk 0:00:18]}  c3 {[%clk 0:00:21]} 65. Kh6 {[%clk 0:00:19]}  c2 {[%clk 0:00:22]} 0-1


[Site "https://www.chess.com"]

[Event "Titled Tuesday Blitz December 14 2021"]
[White "Azadaliyev, Jahandar"]
[Black "Martinovici, Ilia"]
[WhiteFideId "13425811"]
[BlackFideId "13907034"]
[WhiteElo "1795"]
[BlackElo "2303"]
[Result "1-0"]
[Round "04"]
[TimeControl "180+1"]
[Date "2021.12.14"]
[WhiteClock "0:01:37"]
[BlackClock "0:00:52"]

1. d4 {[%clk 0:03:00]}  d5 {[%clk 0:02:56]} 2. c4 {[%clk 0:03:01]}  c6 {[%clk 0:02:56]} 3. e3 {[%clk 0:02:59]}  Nf6 {[%clk 0:02:55]} 4. Nf3 {[%clk 0:02:59]}  Bg4 {[%clk 0:02:53]} 5. Nbd2 {[%clk 0:02:59]}  e6 {[%clk 0:02:53]} 6. Be2 {[%clk 0:02:57]}  Nbd7 {[%clk 0:02:50]} 7. O-O {[%clk 0:02:56]}  Bd6 {[%clk 0:02:50]} 8. b3 {[%clk 0:02:49]}  O-O {[%clk 0:02:49]} 9. Bb2 {[%clk 0:02:48]}  Re8 {[%clk 0:02:50]} 10. Ne5 {[%clk 0:02:42]}  Bxe2 {[%clk 0:02:48]} 11. Qxe2 {[%clk 0:02:43]}  Ne4 {[%clk 0:02:43]} 12. Nxe4 {[%clk 0:02:41]}  dxe4 {[%clk 0:02:44]} 13. Rfd1 {[%clk 0:02:40]}  Bxe5 {[%clk 0:02:42]} 14. dxe5 {[%clk 0:02:41]}  Qc7 {[%clk 0:02:40]} 15. Rd6 {[%clk 0:02:41]}  Nc5 {[%clk 0:02:38]} 16. Rad1 {[%clk 0:02:37]}  Nd3 {[%clk 0:02:37]} 17. Ba1 {[%clk 0:02:37]}  Rad8 {[%clk 0:02:36]} 18. Qg4 {[%clk 0:02:37]}  Rxd6 {[%clk 0:02:12]} 19. exd6 {[%clk 0:02:36]}  f5 {[%clk 0:02:12]} 20. dxc7 {[%clk 0:02:09]}  fxg4 {[%clk 0:02:12]} 21. f3 {[%clk 0:02:09]}  gxf3 {[%clk 0:01:59]} 22. gxf3 {[%clk 0:02:10]}  Rc8 {[%clk 0:01:32]} 23. fxe4 {[%clk 0:02:09]}  Rxc7 {[%clk 0:01:33]} 24. Rxd3 {[%clk 0:02:09]}  Kf7 {[%clk 0:01:33]} 25. Be5 {[%clk 0:02:07]}  Re7 {[%clk 0:01:32]} 26. Rd8 {[%clk 0:02:07]}  b5 {[%clk 0:01:29]} 27. Bd6 {[%clk 0:02:07]}  Rb7 {[%clk 0:01:28]} 28. c5 {[%clk 0:02:06]}  a5 {[%clk 0:01:22]} 29. e5 {[%clk 0:02:05]}  a4 {[%clk 0:01:23]} 30. b4 {[%clk 0:02:04]}  a3 {[%clk 0:01:22]} 31. Bb8 {[%clk 0:02:04]}  Kg6 {[%clk 0:01:21]} 32. Rc8 {[%clk 0:01:59]}  Kf5 {[%clk 0:01:20]} 33. Bd6 {[%clk 0:01:57]}  Ra7 {[%clk 0:01:19]} 34. Rxc6 {[%clk 0:01:56]}  Ra4 {[%clk 0:01:19]} 35. Rb6 {[%clk 0:01:52]}  Rxb4 {[%clk 0:01:19]} 36. c6 {[%clk 0:01:52]}  Rb1+ {[%clk 0:01:12]} 37. Kg2 {[%clk 0:01:50]}  Rb2+ {[%clk 0:01:13]} 38. Kf3 {[%clk 0:01:50]}  Rxa2 {[%clk 0:01:14]} 39. c7 {[%clk 0:01:49]}  Rc2 {[%clk 0:01:09]} 40. Rxb5 {[%clk 0:01:47]}  a2 {[%clk 0:01:09]} 41. Ra5 {[%clk 0:01:44]}  g5 {[%clk 0:01:07]} 42. Rxa2 {[%clk 0:01:42]}  Rxa2 {[%clk 0:00:54]} 43. e4+ {[%clk 0:01:39]}  Kg6 {[%clk 0:00:54]} 44. c8=Q {[%clk 0:01:39]}  Kh5 {[%clk 0:00:52]} 45. Qxe6 {[%clk 0:01:37]} 1-0


[Site "https://www.chess.com"]

[Event "Titled Tuesday Blitz December 14 2021"]
[White "Bacrot, Etienne"]
[Black "Paravyan, David"]
[WhiteFideId "605506"]
[BlackFideId "4194985"]
[WhiteElo "2793"]
[BlackElo "2983"]
[Result "1-0"]
[Round "04"]
[TimeControl "180+1"]
[Date "2021.12.14"]
[WhiteClock "0:00:54"]
[BlackClock "0:00:02"]

1. d4 {[%clk 0:03:00]}  Nf6 {[%clk 0:02:43]} 2. Nf3 {[%clk 0:03:00]}  g6 {[%clk 0:02:43]} 3. g3 {[%clk 0:03:01]}  Bg7 {[%clk 0:02:43]} 4. Bg2 {[%clk 0:03:01]}  O-O {[%clk 0:02:42]} 5. O-O {[%clk 0:03:02]}  d5 {[%clk 0:02:42]} 6. a4 {[%clk 0:03:01]}  Bf5 {[%clk 0:02:38]} 7. a5 {[%clk 0:03:01]}  Qc8 {[%clk 0:02:36]} 8. Nc3 {[%clk 0:02:59]}  c6 {[%clk 0:02:34]} 9. Re1 {[%clk 0:02:52]}  Na6 {[%clk 0:02:34]} 10. Ne5 {[%clk 0:02:42]}  Nd7 {[%clk 0:02:33]} 11. Nf3 {[%clk 0:02:22]}  Nb4 {[%clk 0:02:19]} 12. e4 {[%clk 0:02:20]}  dxe4 {[%clk 0:02:18]} 13. Nxe4 {[%clk 0:02:20]}  Nf6 {[%clk 0:02:18]} 14. Bd2 {[%clk 0:02:06]}  Nxe4 {[%clk 0:02:07]} 15. Bxb4 {[%clk 0:02:06]}  c5 {[%clk 0:02:08]} 16. Ba3 {[%clk 0:02:02]}  Rd8 {[%clk 0:02:04]} 17. g4 {[%clk 0:01:57]}  Nxf2 {[%clk 0:01:15]} 18. Kxf2 {[%clk 0:01:56]}  Bxd4+ {[%clk 0:00:45]} 19. Nxd4 {[%clk 0:01:54]}  Rxd4 {[%clk 0:00:46]} 20. Qf3 {[%clk 0:01:47]}  Bxg4 {[%clk 0:00:38]} 21. Qxb7 {[%clk 0:01:46]}  Qf5+ {[%clk 0:00:26]} 22. Kg1 {[%clk 0:01:45]}  Rad8 {[%clk 0:00:25]} 23. Rxe7 {[%clk 0:01:07]}  Qg5 {[%clk 0:00:14]} 24. Rf1 {[%clk 0:01:00]}  Bh3 {[%clk 0:00:02]} 25. Re8+ {[%clk 0:00:57]}  Kg7 {[%clk 0:00:01]} 26. Rxf7+ {[%clk 0:00:53]}  Kh6 {[%clk 0:00:02]} 27. Rxh7# {[%clk 0:00:54]} 1-0


[Site "https://www.chess.com"]

[Event "Titled Tuesday Blitz December 14 2021"]
[White "Bluebaum, Matthias"]
[Black "Gaehwiler, Gabriel"]
[WhiteFideId "24651516"]
[BlackFideId "1314530"]
[WhiteElo "2609"]
[BlackElo "2383"]
[Result "1/2-1/2"]
[Round "04"]
[TimeControl "180+1"]
[Date "2021.12.14"]
[WhiteClock "0:00:24"]
[BlackClock "0:00:18"]

1. d4 {[%clk 0:03:00]}  Nf6 {[%clk 0:03:00]} 2. Nf3 {[%clk 0:02:57]}  g6 {[%clk 0:02:59]} 3. Nc3 {[%clk 0:02:58]}  d5 {[%clk 0:02:58]} 4. Bf4 {[%clk 0:02:58]}  Bg7 {[%clk 0:02:57]} 5. e3 {[%clk 0:02:59]}  c6 {[%clk 0:02:56]} 6. h3 {[%clk 0:02:59]}  O-O {[%clk 0:02:55]} 7. Be2 {[%clk 0:03:00]}  Nbd7 {[%clk 0:02:56]} 8. O-O {[%clk 0:03:00]}  b6 {[%clk 0:02:49]} 9. a4 {[%clk 0:02:57]}  a5 {[%clk 0:02:47]} 10. Nb1 {[%clk 0:02:58]}  Bb7 {[%clk 0:02:46]} 11. c4 {[%clk 0:02:58]}  c5 {[%clk 0:02:39]} 12. Nc3 {[%clk 0:02:38]}  Rc8 {[%clk 0:02:35]} 13. cxd5 {[%clk 0:02:06]}  Nxd5 {[%clk 0:02:35]} 14. Nxd5 {[%clk 0:02:07]}  Bxd5 {[%clk 0:02:34]} 15. Ba6 {[%clk 0:02:07]}  Ra8 {[%clk 0:02:32]} 16. Bb5 {[%clk 0:02:08]}  cxd4 {[%clk 0:02:29]} 17. Nxd4 {[%clk 0:01:50]}  Nc5 {[%clk 0:02:04]} 18. Bh2 {[%clk 0:01:37]}  Rc8 {[%clk 0:01:51]} 19. Rc1 {[%clk 0:01:33]}  e5 {[%clk 0:01:48]} 20. Nf3 {[%clk 0:01:25]}  Bxf3 {[%clk 0:01:21]} 21. Qxf3 {[%clk 0:01:26]}  e4 {[%clk 0:01:21]} 22. Qe2 {[%clk 0:01:25]}  Qf6 {[%clk 0:01:00]} 23. Rc2 {[%clk 0:01:26]}  Nd3 {[%clk 0:00:56]} 24. Bxd3 {[%clk 0:01:18]}  exd3 {[%clk 0:00:55]} 25. Qxd3 {[%clk 0:01:19]}  Rxc2 {[%clk 0:00:54]} 26. Qxc2 {[%clk 0:01:20]}  Qxb2 {[%clk 0:00:24]} 27. Qxb2 {[%clk 0:01:20]}  Bxb2 {[%clk 0:00:25]} 28. Bc7 {[%clk 0:01:19]}  Bc3 {[%clk 0:00:19]} 29. Rc1 {[%clk 0:01:14]}  Bb4 {[%clk 0:00:19]} 30. Bxb6 {[%clk 0:01:15]}  Rb8 {[%clk 0:00:20]} 31. Bd4 {[%clk 0:01:14]}  Kf8 {[%clk 0:00:20]} 32. g4 {[%clk 0:01:07]}  Ke8 {[%clk 0:00:21]} 33. Rc6 {[%clk 0:01:07]}  Kd7 {[%clk 0:00:20]} 34. Ra6 {[%clk 0:01:06]}  Rb7 {[%clk 0:00:20]} 35. Kg2 {[%clk 0:01:06]}  Rc7 {[%clk 0:00:21]} 36. Kf3 {[%clk 0:01:05]}  Rc4 {[%clk 0:00:21]} 37. Ra7+ {[%clk 0:01:01]}  Ke6 {[%clk 0:00:19]} 38. Ke2 {[%clk 0:00:52]}  Rc2+ {[%clk 0:00:19]} 39. Kf1 {[%clk 0:00:50]}  Ra2 {[%clk 0:00:20]} 40. e4 {[%clk 0:00:36]}  Rxa4 {[%clk 0:00:20]} 41. f4 {[%clk 0:00:37]}  f5 {[%clk 0:00:17]} 42. gxf5+ {[%clk 0:00:30]}  gxf5 {[%clk 0:00:18]} 43. Ra6+ {[%clk 0:00:31]}  Kd7 {[%clk 0:00:14]} 44. exf5 {[%clk 0:00:31]}  Bd6 {[%clk 0:00:14]} 45. Be5 {[%clk 0:00:31]}  Bxe5 {[%clk 0:00:14]} 46. fxe5 {[%clk 0:00:31]}  Rf4+ {[%clk 0:00:15]} 47. Kg2 {[%clk 0:00:31]}  Rxf5 {[%clk 0:00:15]} 48. Rxa5 {[%clk 0:00:32]}  Ke6 {[%clk 0:00:16]} 49. Ra7 {[%clk 0:00:21]}  Kxe5 {[%clk 0:00:16]} 50. Rxh7 {[%clk 0:00:21]}  Kf6 {[%clk 0:00:16]} 51. Ra7 {[%clk 0:00:21]}  Rg5+ {[%clk 0:00:16]} 52. Kh2 {[%clk 0:00:21]}  Rg7 {[%clk 0:00:17]} 53. Ra6+ {[%clk 0:00:20]}  Kf7 {[%clk 0:00:17]} 54. h4 {[%clk 0:00:21]}  Kg8 {[%clk 0:00:18]} 55. Kh3 {[%clk 0:00:21]}  Kh7 {[%clk 0:00:19]} 56. Ra5 {[%clk 0:00:20]}  Rf7 {[%clk 0:00:19]} 57. Rh5+ {[%clk 0:00:20]}  Kg7 {[%clk 0:00:19]} 58. Rg5+ {[%clk 0:00:21]}  Kh7 {[%clk 0:00:20]} 59. Rg3 {[%clk 0:00:22]}  Rg7 {[%clk 0:00:20]} 60. Rf3 {[%clk 0:00:22]}  Re7 {[%clk 0:00:20]} 61. Kg4 {[%clk 0:00:23]}  Kg7 {[%clk 0:00:20]} 62. h5 {[%clk 0:00:23]}  Re4+ {[%clk 0:00:21]} 63. Kf5 {[%clk 0:00:23]}  Re8 {[%clk 0:00:21]} 64. Kg5 {[%clk 0:00:23]}  Re5+ {[%clk 0:00:21]} 65. Kg4 {[%clk 0:00:24]}  Re4+ {[%clk 0:00:21]} 66. Kf5 {[%clk 0:00:24]}  Re8 {[%clk 0:00:21]} 67. Rc3 {[%clk 0:00:22]}  Rf8+ {[%clk 0:00:21]} 68. Kg5 {[%clk 0:00:23]}  Kg8 {[%clk 0:00:21]} 69. Rc7 {[%clk 0:00:23]}  Kh8 {[%clk 0:00:22]} 70. Kg6 {[%clk 0:00:23]}  Rg8+ {[%clk 0:00:22]} 71. Kh6 {[%clk 0:00:22]}  Re8 {[%clk 0:00:22]} 72. Rc6 {[%clk 0:00:21]}  Rf8 {[%clk 0:00:22]} 73. Kg6 {[%clk 0:00:22]}  Rg8+ {[%clk 0:00:23]} 74. Kh6 {[%clk 0:00:20]}  Rf8 {[%clk 0:00:23]} 75. Kg5 {[%clk 0:00:19]}  Rg8+ {[%clk 0:00:23]} 76. Rg6 {[%clk 0:00:19]}  Rxg6+ {[%clk 0:00:17]} 77. hxg6 {[%clk 0:00:20]}  Kg7 {[%clk 0:00:18]} 78. Kf5 {[%clk 0:00:20]}  Kg8 {[%clk 0:00:18]} 79. Ke6 {[%clk 0:00:20]}  Kg7 {[%clk 0:00:17]} 80. Kf5 {[%clk 0:00:21]}  Kg8 {[%clk 0:00:18]} 81. Kf6 {[%clk 0:00:21]}  Kf8 {[%clk 0:00:18]} 82. Kg5 {[%clk 0:00:22]}  Kg7 {[%clk 0:00:18]} 83. Kh5 {[%clk 0:00:23]}  Kg8 {[%clk 0:00:18]} 84. Kh6 {[%clk 0:00:22]}  Kh8 {[%clk 0:00:18]} 85. Kh5 {[%clk 0:00:23]}  Kg7 {[%clk 0:00:18]} 86. Kh4 {[%clk 0:00:24]}  Kxg6 {[%clk 0:00:18]} 1/2-1/2


[Site "https://www.chess.com"]

[Event "Titled Tuesday Blitz December 14 2021"]
[White "Chiu, Isaac"]
[Black "Djordjevic, Vuk"]
[WhiteFideId "30900654"]
[BlackFideId "902098"]
[WhiteElo "2117"]
[BlackElo "2463"]
[Result "0-1"]
[Round "04"]
[TimeControl "180+1"]
[Date "2021.12.15"]
[WhiteClock "0:00:13"]
[BlackClock "0:00:06"]

1. c4 {[%clk 0:03:00]}  e5 {[%clk 0:03:00]} 2. g3 {[%clk 0:03:00]}  Nc6 {[%clk 0:03:00]} 3. Bg2 {[%clk 0:03:00]}  d6 {[%clk 0:02:59]} 4. Nc3 {[%clk 0:02:59]}  Be6 {[%clk 0:02:59]} 5. b3 {[%clk 0:02:54]}  Qd7 {[%clk 0:02:58]} 6. e3 {[%clk 0:02:55]}  g6 {[%clk 0:02:58]} 7. d4 {[%clk 0:02:55]}  exd4 {[%clk 0:02:56]} 8. exd4 {[%clk 0:02:56]}  Bg7 {[%clk 0:02:57]} 9. Nge2 {[%clk 0:02:53]}  Bh3 {[%clk 0:02:55]} 10. O-O {[%clk 0:02:51]}  Bxg2 {[%clk 0:02:55]} 11. Kxg2 {[%clk 0:02:52]}  Nge7 {[%clk 0:02:48]} 12. d5 {[%clk 0:02:48]}  Ne5 {[%clk 0:02:44]} 13. h3 {[%clk 0:02:36]}  f5 {[%clk 0:02:41]} 14. Nd4 {[%clk 0:02:31]}  c6 {[%clk 0:02:18]} 15. Ne6 {[%clk 0:02:20]}  Bf6 {[%clk 0:02:18]} 16. Ba3 {[%clk 0:02:09]}  Nxc4 {[%clk 0:02:06]} 17. bxc4 {[%clk 0:02:04]}  Bxc3 {[%clk 0:02:06]} 18. Rc1 {[%clk 0:02:02]}  Bf6 {[%clk 0:02:06]} 19. Re1 {[%clk 0:02:00]}  Kf7 {[%clk 0:01:58]} 20. Qf3 {[%clk 0:01:44]}  cxd5 {[%clk 0:01:37]} 21. cxd5 {[%clk 0:01:35]}  Rac8 {[%clk 0:01:37]} 22. Nf4 {[%clk 0:01:23]}  Rxc1 {[%clk 0:01:32]} 23. Rxc1 {[%clk 0:01:24]}  Rc8 {[%clk 0:01:32]} 24. Re1 {[%clk 0:01:19]}  Rc3 {[%clk 0:01:26]} 25. Re3 {[%clk 0:01:20]}  Rxe3 {[%clk 0:01:25]} 26. Qxe3 {[%clk 0:01:20]}  Be5 {[%clk 0:01:22]} 27. Nd3 {[%clk 0:01:05]}  Nxd5 {[%clk 0:01:06]} 28. Qxa7 {[%clk 0:00:48]}  Qc6 {[%clk 0:00:51]} 29. Kh2 {[%clk 0:00:48]}  Bf6 {[%clk 0:00:45]} 30. Qa8 {[%clk 0:00:34]}  Nc7 {[%clk 0:00:32]} 31. Qc8 {[%clk 0:00:32]}  Nb5 {[%clk 0:00:30]} 32. Qa8 {[%clk 0:00:18]}  Qf3 {[%clk 0:00:25]} 33. Nf4 {[%clk 0:00:15]}  Nxa3 {[%clk 0:00:16]} 34. Qc8 {[%clk 0:00:16]}  Qxf2+ {[%clk 0:00:15]} 35. Kh1 {[%clk 0:00:16]}  Qe1+ {[%clk 0:00:14]} 36. Kh2 {[%clk 0:00:15]}  Qd2+ {[%clk 0:00:14]} 37. Ng2 {[%clk 0:00:15]}  Qe2 {[%clk 0:00:10]} 38. Qxb7+ {[%clk 0:00:15]}  Be7 {[%clk 0:00:07]} 39. Qb3+ {[%clk 0:00:15]}  Nc4 {[%clk 0:00:07]} 40. h4 {[%clk 0:00:14]}  d5 {[%clk 0:00:08]} 41. Kh3 {[%clk 0:00:13]}  Qb2 {[%clk 0:00:08]} 42. Qf3 {[%clk 0:00:12]}  Qd2 {[%clk 0:00:06]} 43. Nf4 {[%clk 0:00:12]}  Ne3 {[%clk 0:00:06]} 44. a4 {[%clk 0:00:11]}  Qd1 {[%clk 0:00:06]} 45. Qxd1 {[%clk 0:00:11]}  Nxd1 {[%clk 0:00:06]} 46. Nxd5 {[%clk 0:00:11]}  Bc5 {[%clk 0:00:06]} 47. g4 {[%clk 0:00:12]}  fxg4+ {[%clk 0:00:06]} 48. Kxg4 {[%clk 0:00:13]}  Ne3+ {[%clk 0:00:06]} 49. Nxe3 {[%clk 0:00:12]}  Bxe3 {[%clk 0:00:07]} 50. h5 {[%clk 0:00:13]}  g5 {[%clk 0:00:05]} 51. Kf5 {[%clk 0:00:12]}  h6 {[%clk 0:00:05]} 52. a5 {[%clk 0:00:13]}  Ba7 {[%clk 0:00:06]} 53. Kg4 {[%clk 0:00:13]}  Kf6 {[%clk 0:00:06]} 54. Kf3 {[%clk 0:00:13]}  Kf5 {[%clk 0:00:06]} 0-1


[Site "https://www.chess.com"]